fUSD/lending_fUSD_20251225
["ID","MTS","AMOUNT","RATE_DAILY","PERIOD"]
[399741191,1766649043109,-500.0,0.00016699,2]
[399741192,1766649043118,-150.0,0.00016699,2]
[399741193,1766649043128,-500.0,0.00016699,2]
[399741194,1766649043137,-200.0,0.00016699,2]
[399741195,1766649043147,-150.0,0.00016699,2]
[399741196,1766649043156,-500.0,0.00016699,2]
[399741197,1766649043166,-500.0,0.00016699,2]
[399741198,1766649043176,-825.23,0.00016722,2]
[399741199,1766649043185,-500.0,0.00016722,2]
[399741200,1766649043195,-551.84,0.00016722,2]
[399741201,1766649043205,-500.0,0.00016726,2]
[399741202,1766649043215,-243.72785085,0.00016726,2]
[399741203,1766649043224,-500.0,0.00016726,2]
[399741205,1766649043234,-174.82250522,0.00016726,2]
[399741206,1766649043244,-500.0,0.00016726,2]
[399741207,1766649043254,-518.01684681,0.00016726,2]
[399741208,1766649043265,-300.0,0.00016728,2]
[399741209,1766649043275,-1000.0,0.00016728,2]
[399741210,1766649043286,-1107.64592037,0.00016732,2]
[399741211,1766649043297,-254.13060141,0.00016751,2]
[399741212,1766649043306,-500.0,0.00016754,2]
[399741213,1766649043316,-500.0,0.00016754,2]
[399741214,1766649043326,-335.94071721,0.00016754,2]
[399741215,1766649043335,-300.0,0.00016756,2]
[399741216,1766649043345,-1000.0,0.00016758,2]
[399741217,1766649043355,-1000.0,0.00016761,2]
[399741218,1766649043365,-150.0,0.00016763,2]
[399741219,1766649043375,-300.0,0.00016765,2]
[399741220,1766649043386,-448.75068297,0.00016781,2]
[399741221,1766649043396,-500.0,0.00016781,2]
[399741222,1766649043406,-1000.0,0.00016791,2]
[399741223,1766649043416,-1000.0,0.00016791,2]
[399741224,1766649043425,-1000.0,0.00016792,2]
[399741225,1766649043436,-224.2608279,0.00016804,2]
[399741226,1766649043446,-500.0,0.00016809,2]
[399741227,1766649043455,-300.0,0.00016811,2]
[399741228,1766649043465,-500.0,0.00016822,2]
[399741229,1766649043476,-4218.672,0.00016823,2]
[399741230,1766649043486,-350.114,0.00016823,2]
[399741231,1766649043496,-150.0,0.00016826,2]
[399741232,1766649043505,-300.0,0.00016834,2]
[399741233,1766649043514,-300.0,0.00016834,2]
[399741234,1766649043524,-150.0,0.00016835,2]
[399741235,1766649043534,-402.48179652,0.00016836,2]
[399741236,1766649043544,-1000.0,0.00016841,2]
[399741237,1766649043554,-1000.0,0.00016857,2]
[399741238,1766649043564,-200.0,0.00016863,2]
[399741239,1766649043574,-200.0,0.00016864,2]
[399741240,1766649043584,-1000.0,0.00016867,2]
[399741241,1766649043594,-1000.0,0.0001687,2]
[399741242,1766649043604,-150.0,0.0001688,2]
[399741243,1766649043614,-10000.0,0.00016888,2]
[399741244,1766649043624,-1000.0,0.00016896,2]
[399741245,1766649043634,-3460.15864286,0.00016897,2]
[399741246,1766649043644,-299.6312354,0.000169,2]
[399741247,1766649043654,-380.69857404,0.000169,2]
[399741248,1766649043663,-156.81485742,0.000169,2]
[399741249,1766649043674,-163.51200952,0.000169,2]
[399741251,1766649043683,-9394.0,0.000169,2]
[399741252,1766649043694,-248.0,0.00016902,2]
[399741253,1766649043703,-300.0,0.00016907,2]
[399741254,1766649043713,-150.0,0.00016908,2]
[399741255,1766649043726,-300.0,0.0001691,2]
[399741256,1766649043736,-150.0,0.00016914,2]
[399741257,1766649043746,-300.0,0.00016918,2]
[399741258,1766649043757,-150.0,0.00016932,2]
[399741259,1766649043767,-500.0,0.00016934,2]
[399741260,1766649043778,-695.14,0.00016934,2]
[399741261,1766649043787,-510.32017252,0.00016934,2]
[399741262,1766649043799,-500.0,0.00016934,2]
[399741263,1766649043809,-500.0,0.00016934,2]
[399741264,1766649043819,-500.0,0.00016934,2]
[399741265,1766649043829,-150.0,0.00016938,2]
[399741266,1766649043839,-1000.0,0.00016944,2]
[399741267,1766649043849,-150.0,0.00016957,2]
[399741268,1766649043858,-1500.66,0.0001696,2]
[399741269,1766649043867,-1000.0,0.00016965,2]
[399741270,1766649043877,-172.71520576,0.00016973,2]
[399741271,1766649043887,-500.0,0.00016973,2]
[399741273,1766649043897,-500.0,0.00016973,2]
[399741274,1766649043907,-163.82860777,0.00016973,2]
[399741275,1766649043917,-500.0,0.00016973,2]
[399741277,1766649043927,-501.47157547,0.00016973,2]
[399741279,1766649043936,-500.0,0.00016973,2]
[399741281,1766649043946,-500.0,0.00016973,2]
[399741283,1766649043956,-505.52174355,0.00016973,2]
[399741285,1766649043964,-500.0,0.00016973,2]
[399741287,1766649043973,-500.0,0.00016973,2]
[399741289,1766649043983,-503.89734133,0.00016973,2]
[399741291,1766649043992,-500.0,0.00016973,2]
[399741292,1766649044002,-466.57897047,0.00016973,2]
[399741293,1766649044011,-500.0,0.00016973,2]
[399741294,1766649044021,-500.0,0.00016973,2]
[399741295,1766649044031,-150.0,0.00016982,2]
[399741296,1766649044041,-52287.96,0.00016986,2]
[399741297,1766649044051,-600.0,0.00016986,2]
[399741298,1766649044060,-1000.0,0.00016987,2]
[399741299,1766649044071,-150.0,0.00016993,2]
[399741300,1766649044081,-825.23,0.00016996,2]
[399741301,1766649044091,-500.0,0.00016996,2]
[399741302,1766649044102,-500.0,0.00016996,2]
[399741303,1766649044111,-500.0,0.00016996,2]
[399741304,1766649044121,-521.79,0.00016996,2]
[399741305,1766649044131,-500.0,0.00016996,2]
[399741306,1766649044141,-610.34,0.00016996,2]
[399741307,1766649044151,-500.0,0.00016996,2]
[399741308,1766649044161,-551.84,0.00016996,2]
[399741309,1766649044172,-500.0,0.00016996,2]
[399741310,1766649044182,-55529.9820474,0.00016997,2]
[399741311,1766649044193,-71290.50241491,0.00016997,2]
[399741312,1766649044211,-305.66940031,0.00016997,2]
[399741313,1766649044223,-879.015,0.00016997,2]
[399741314,1766649044234,-3336.62340853,0.00016997,2]
[399741315,1766649044246,-788.50317115,0.00016997,2]
[399741316,1766649044262,-73474.5790336,0.00016997,2]
[399741317,1766649044395,-9026.242736,0.00016997,2]
[399741318,1766649044423,-151.0,0.00016997,2]
[399741319,1766649044434,-500.0,0.00016999,2]
[399741320,1766649044444,-500.0,0.00016999,2]
[399741321,1766649044454,-500.0,0.00016999,2]
[399741322,1766649044464,-526.94684762,0.00016999,2]
[399741323,1766649044475,-695.14,0.00016999,2]
[399741324,1766649044485,-695.14,0.00016999,2]
[399741325,1766649044495,-695.14,0.00016999,2]
[399741326,1766649044505,-695.14,0.00016999,2]
[399741327,1766649044515,-695.14,0.00016999,2]
[399741328,1766649044525,-695.14,0.00016999,2]
[399741329,1766649044535,-695.14,0.00016999,2]
[399741330,1766649044544,-695.14,0.00016999,2]
[399741331,1766649044554,-695.14,0.00016999,2]
[399741332,1766649044565,-695.14,0.00016999,2]
[399741333,1766649044575,-695.14,0.00016999,2]
[399741334,1766649044585,-695.14,0.00016999,2]
[399741335,1766649044595,-695.14,0.00016999,2]
[399741336,1766649044605,-695.14,0.00016999,2]
[399741337,1766649044615,-695.14,0.00016999,2]
[399741338,1766649044624,-695.21367143,0.00016999,2]
[399741339,1766649044634,-500.0,0.00016999,2]
[399741340,1766649044644,-500.0,0.00016999,2]
[399741341,1766649044655,-587.42809654,0.00016999,2]
[399741342,1766649044664,-825.23,0.00016999,2]
[399741343,1766649044674,-825.23,0.00016999,2]
[399741344,1766649044684,-825.23,0.00016999,2]
[399741345,1766649044693,-825.23,0.00016999,2]
[399741346,1766649044703,-825.23,0.00016999,2]
[399741347,1766649044713,-825.23,0.00016999,2]
[399741348,1766649044726,-825.23,0.00016999,2]
[399741349,1766649044736,-825.23,0.00016999,2]
[399741350,1766649044746,-825.23,0.00016999,2]
[399741351,1766649044755,-825.23,0.00016999,2]
[399741352,1766649044766,-825.23,0.00016999,2]
[399741353,1766649044776,-300.0,0.00016999,2]
[399741354,1766649044786,-500.0,0.00016999,2]
[399741355,1766649044796,-500.0,0.00016999,2]
[399741356,1766649044806,-500.0,0.00016999,2]
[399741357,1766649044817,-500.0,0.00016999,2]
[399741358,1766649044827,-500.0,0.00016999,2]
[399741359,1766649044837,-500.0,0.00016999,2]
[399741360,1766649044847,-500.0,0.00016999,2]
[399741361,1766649044856,-500.0,0.00016999,2]
[399741362,1766649044866,-500.0,0.00016999,2]
[399741363,1766649044876,-500.0,0.00016999,2]
[399741364,1766649044886,-500.0,0.00016999,2]
[399741365,1766649044896,-500.0,0.00016999,2]
[399741366,1766649044906,-300.0,0.00016999,2]
[399741367,1766649044916,-666.0,0.00016999,2]
[399741368,1766649044926,-500.0,0.00016999,2]
[399741369,1766649044935,-500.0,0.00016999,2]
[399741370,1766649044945,-500.0,0.00016999,2]
[399741371,1766649044955,-313.70462567,0.00016999,2]
[399741372,1766649044965,-500.0,0.00016999,2]
[399741373,1766649044975,-500.0,0.00016999,2]
[399741374,1766649044985,-500.0,0.00016999,2]
[399741375,1766649044995,-325.50708254,0.00016999,2]
[399741376,1766649045005,-500.0,0.00016999,2]
[399741377,1766649045015,-521.79,0.00016999,2]
[399741378,1766649045025,-500.0,0.00016999,2]
[399741379,1766649045035,-521.79,0.00016999,2]
[399741380,1766649045045,-521.79,0.00016999,2]
[399741381,1766649045054,-500.0,0.00016999,2]
[399741382,1766649045064,-521.79,0.00016999,2]
[399741383,1766649045073,-500.0,0.00016999,2]
[399741384,1766649045083,-521.79,0.00016999,2]
[399741385,1766649045093,-644.18528061,0.00016999,2]
[399741386,1766649045103,-521.79,0.00016999,2]
[399741387,1766649045113,-521.79,0.00016999,2]
[399741388,1766649045122,-521.79,0.00016999,2]
[399741389,1766649045132,-521.79,0.00016999,2]
[399741390,1766649045142,-521.79,0.00016999,2]
[399741391,1766649045153,-521.79,0.00016999,2]
[399741392,1766649045163,-521.79,0.00016999,2]
[399741393,1766649045172,-521.79,0.00016999,2]
[399741394,1766649045182,-521.79,0.00016999,2]
[399741395,1766649045193,-521.88956399,0.00016999,2]
[399741396,1766649045203,-238.33319847,0.00016999,2]
[399741397,1766649045213,-610.34,0.00016999,2]
[399741398,1766649045222,-610.34,0.00016999,2]
[399741399,1766649045231,-610.34,0.00016999,2]
[399741400,1766649045242,-610.34,0.00016999,2]
[399741401,1766649045252,-610.34,0.00016999,2]
[399741402,1766649045262,-610.34,0.00016999,2]
[399741403,1766649045272,-610.34,0.00016999,2]
[399741404,1766649045282,-610.34,0.00016999,2]
[399741405,1766649045293,-610.34,0.00016999,2]
[399741406,1766649045303,-610.34,0.00016999,2]
[399741407,1766649045312,-610.34,0.00016999,2]
[399741408,1766649045322,-610.34,0.00016999,2]
[399741409,1766649045334,-610.34,0.00016999,2]
[399741410,1766649045345,-610.34,0.00016999,2]
[399741411,1766649045355,-610.43830899,0.00016999,2]
[399741412,1766649045365,-500.0,0.00016999,2]
[399741413,1766649045375,-500.0,0.00016999,2]
[399741414,1766649045385,-500.0,0.00016999,2]
[399741415,1766649045395,-500.0,0.00016999,2]
[399741416,1766649045405,-177.66511868,0.00016999,2]
[399741417,1766649045415,-551.84,0.00016999,2]
[399741418,1766649045425,-551.84,0.00016999,2]
[399741419,1766649045435,-551.84,0.00016999,2]
[399741420,1766649045446,-551.84,0.00016999,2]
[399741421,1766649045456,-551.84,0.00016999,2]
[399741422,1766649045466,-551.84,0.00016999,2]
[399741423,1766649045476,-551.84,0.00016999,2]
[399741424,1766649045486,-551.84,0.00016999,2]
[399741425,1766649045496,-551.84,0.00016999,2]
[399741426,1766649045507,-551.84,0.00016999,2]
[399741427,1766649045517,-551.84,0.00016999,2]
[399741428,1766649045528,-500.0,0.00016999,2]
[399741429,1766649045539,-500.0,0.00016999,2]
[399741430,1766649045549,-508.51346411,0.00016999,2]
[399741431,1766649045559,-484952.08220985,0.00017,2]
[399741432,1766649045573,-60701.80358013,0.00017,2]
[399741433,1766649045666,-374.82968442,0.00017,2]
[399741434,1766649045716,-151.0,0.00014401,2]
[399741435,1766649045729,-5888.07933974,0.00017,2]
[399741436,1766649045741,-4481.67,0.00017,2]
[399741437,1766649045753,-18567.30510276,0.00017,2]
[399741438,1766649046185,-1000.0,0.000167,2]
[399741439,1766649046195,-1977.0,0.000167,2]
[399741440,1766649046205,-169860.02035859,0.00017,2]
[399741441,1766649046421,-7577.39771907,0.00017,2]
[399741442,1766649046435,-2000.0,0.00017,2]
[399741443,1766649068578,5000.0,0.00013764,4]
[399741446,1766649257121,567.78,0.00032876,120]
[399741447,1766649267827,242.26,0.00032876,120]
[399741448,1766649306943,1000.0,0.00032876,120]
[399741458,1766649516471,200.0,0.00032,120]
[399741459,1766649545637,250.0,0.00032,120]
[399741461,1766649563408,333.0,0.000324,120]
[399741471,1766649790709,1555.673447,0.000324,120]
[399741492,1766650003758,404.0,0.0003287,120]
[399741493,1766650004552,540.0,0.0003287,120]
[399741494,1766650005837,536.0,0.0003287,120]
[399741495,1766650008008,171.0,0.0003287,120]
[399741497,1766650062330,785.0,0.0003287,120]
[399741498,1766650063113,638.0,0.0003287,120]
[399741499,1766650065248,163.0,0.0003287,120]
[399741500,1766650069045,173.75,0.00031507,120]
[399741505,1766650124488,1311.0,0.0003287,120]
[399741506,1766650127112,161.0,0.0003287,120]
[399741508,1766650162741,-243.0,0.00011409,2]
[399741509,1766650162763,-300.0,0.00011409,2]
[399741510,1766650162786,-250.0,0.00011409,2]
[399741511,1766650162807,-300.0,0.00011409,2]
[399741512,1766650162829,-300.0,0.00011409,2]
[399741513,1766650162851,-250.0,0.00011409,2]
[399741514,1766650162872,-500.0,0.00011425,2]
[399741515,1766650162894,-688.77,0.00011522,2]
[399741516,1766650162914,-1216.27,0.00011534,2]
[399741517,1766650162936,-300.0,0.00011555,2]
[399741518,1766650162957,-2500.0,0.00011556,2]
[399741519,1766650162982,-3151.96,0.00011556,2]
[399741520,1766650164108,-2703.8422643,0.00011556,2]
[399741521,1766650164136,-3282.27716265,0.00011579,2]
[399741522,1766650164159,-150.0,0.00011644,2]
[399741523,1766650164181,-500.0,0.00011645,2]
[399741524,1766650164202,-500.0,0.00011645,2]
[399741525,1766650164234,-500.0,0.00011645,2]
[399741526,1766650164266,-500.0,0.00011645,2]
[399741527,1766650164296,-500.0,0.00011645,2]
[399741528,1766650164317,-500.0,0.00011645,2]
[399741529,1766650164347,-500.0,0.00011645,2]
[399741530,1766650164368,-363.88057305,0.00011645,2]
[399741531,1766650164701,-256.11942695,0.00011645,2]
[399741532,1766650164733,-500.0,0.00011645,2]
[399741533,1766650164763,-500.0,0.00011645,2]
[399741534,1766650164793,-500.0,0.00011645,2]
[399741535,1766650165139,-500.0,0.00011645,2]
[399741536,1766650165171,-500.0,0.00011645,2]
[399741537,1766650165201,-500.0,0.00011645,2]
[399741538,1766650165230,-500.0,0.00011645,2]
[399741539,1766650165260,-500.0,0.00011645,2]
[399741540,1766650165289,-500.0,0.00011645,2]
[399741541,1766650165320,-500.0,0.00011645,2]
[399741542,1766650165349,-500.0,0.00011645,2]
[399741543,1766650165378,-500.0,0.00011645,2]
[399741544,1766650165408,-500.0,0.00011645,2]
[399741545,1766650165435,-500.0,0.00011645,2]
[399741546,1766650165464,-500.0,0.00011645,2]
[399741547,1766650165491,-500.0,0.00011645,2]
[399741548,1766650165518,-500.0,0.00011645,2]
[399741549,1766650165543,-500.0,0.00011645,2]
[399741550,1766650165571,-500.0,0.00011645,2]
[399741551,1766650165599,-243.88057305,0.00011645,2]
[399741552,1766650165694,-10000.0,0.00011548,2]
[399741553,1766650165787,-10000.0,0.00011548,2]
[399741554,1766650166051,-10000.0,0.00011548,2]
[399741555,1766650166594,-10000.0,0.00011548,2]
[399741556,1766650167204,-10000.0,0.00011548,2]
[399741557,1766650167412,-10000.0,0.00011548,2]
[399741558,1766650168013,-10000.0,0.00011548,2]
[399741559,1766650168588,-10000.0,0.00011548,2]
[399741560,1766650169113,-10000.0,0.00011548,2]
[399741561,1766650169969,-10000.0,0.00011548,2]
[399741562,1766650170863,-10000.0,0.00011548,2]
[399741563,1766650171777,-10000.0,0.00011548,2]
[399741564,1766650172874,-10000.0,0.00011548,2]
[399741565,1766650173682,-10000.0,0.00011548,2]
[399741566,1766650175288,-10000.0,0.00011548,2]
[399741567,1766650184606,207.0,0.0003287,120]
[399741568,1766650196743,-750.0,0.00011548,2]
[399741569,1766650222652,1000.0,0.00032876,120]
[399741571,1766650231921,-373.17395229,0.00011479,2]
[399741572,1766650231945,-300.0,0.00011547,2]
[399741573,1766650231968,-300.0,0.00011547,2]
[399741574,1766650231989,-300.0,0.00011547,2]
[399741575,1766650232012,-1200.0,0.00011547,2]
[399741577,1766650232035,-228.43620904,0.00011547,2]
[399741578,1766650232061,-327.99056824,0.00011547,2]
[399741579,1766650232084,-300.0,0.00011548,2]
[399741581,1766650232107,-250.0,0.00011548,2]
[399741583,1766650232130,-245.0,0.00011548,2]
[399741584,1766650232162,-1755.39927043,0.00011548,2]
[399741585,1766650232228,-226.40502823,0.00011547,2]
[399741586,1766650232239,-210.19508449,0.00011548,2]
[399741587,1766650232253,-453.95773948,0.00011548,2]
[399741588,1766650232266,-1683.5283617,0.00011548,2]
[399741589,1766650232277,-21971.91245129,0.00011548,2]
[399741590,1766650232290,-479.58345571,0.00011548,2]
[399741591,1766650232305,-434.57723662,0.00011548,2]
[399741592,1766650232322,-867.26202952,0.00011548,2]
[399741593,1766650232334,-932.78264644,0.00011548,2]
[399741594,1766650232406,-1908.3692,0.00011309,2]
[399741596,1766650232416,-14402.1258,0.00011548,2]
[399741599,1766650232428,-887.52956503,0.00011548,2]
[399741601,1766650232444,-349.17285286,0.00011548,2]
[399741604,1766650232461,-837.13412801,0.00011548,2]
[399741619,1766650238382,-500.0,0.00011547,2]
[399741620,1766650238392,-43.57890316,0.00011547,2]
[399741636,1766650241245,-456.42109684,0.00011547,2]
[399741637,1766650241255,-352.76051134,0.00011547,2]
[399741638,1766650241270,-147.23948866,0.00011547,2]
[399741639,1766650241281,-158.31576071,0.00011547,2]
[399741640,1766650241293,-341.68423929,0.00011547,2]
[399741641,1766650241303,-192.31576071,0.00011547,2]
[399741642,1766650241316,-307.68423929,0.00011547,2]
[399741643,1766650241326,-500.0,0.00011547,2]
[399741644,1766650241335,-500.0,0.00011547,2]
[399741645,1766650241345,-500.0,0.00011547,2]
[399741646,1766650241355,-500.0,0.00011547,2]
[399741647,1766650241365,-500.0,0.00011547,2]
[399741648,1766650241375,-195.91411031,0.00011547,2]
[399741649,1766650241387,-304.08588969,0.00011547,2]
[399741650,1766650241397,-500.0,0.00011547,2]
[399741651,1766650241407,-500.0,0.00011547,2]
[399741652,1766650241417,-500.0,0.00011547,2]
[399741653,1766650241428,-500.0,0.00011547,2]
[399741654,1766650241442,-500.0,0.00011547,2]
[399741655,1766650241452,-500.0,0.00011547,2]
[399741656,1766650241461,-500.0,0.00011547,2]
[399741657,1766650241471,-500.0,0.00011547,2]
[399741658,1766650241483,-500.0,0.00011547,2]
[399741659,1766650241493,-500.0,0.00011547,2]
[399741660,1766650241503,-500.0,0.00011547,2]
[399741661,1766650241514,-500.0,0.00011547,2]
[399741662,1766650241524,-500.0,0.00011547,2]
[399741663,1766650241534,-500.0,0.00011547,2]
[399741664,1766650241550,-13737.37210288,0.00011548,2]
[399741665,1766650241564,-4348.12435315,0.00011548,2]
[399741666,1766650241577,-2280.9972858,0.00011548,2]
[399741667,1766650241590,-1956.161805,0.00011548,2]
[399741668,1766650241608,-781662.18383159,0.00011548,2]
[399741669,1766650241619,-203.6419384,0.00011579,2]
[399741670,1766650241629,-300.0,0.00011593,2]
[399741671,1766650241640,-4911.94812318,0.00011612,2]
[399741672,1766650241650,-502.33995082,0.00011612,2]
[399741673,1766650241661,-4237.20519219,0.00011612,2]
[399741674,1766650241670,-635.1033867,0.00011647,2]
[399741675,1766650241681,-3374.938,0.00011647,2]
[399741676,1766650241691,-280.091,0.00011647,2]
[399741677,1766650241702,-5828.01,0.00011647,2]
[399741678,1766650241712,-299.99,0.00011647,2]
[399741679,1766650241722,-999.99,0.00011647,2]
[399741680,1766650241732,-2979.36,0.00011647,2]
[399741681,1766650241742,-9999.99,0.00011647,2]
[399741682,1766650241751,-8752.24,0.00011647,2]
[399741683,1766650241762,-150.99,0.00011647,2]
[399741684,1766650241772,-449.56,0.00011648,2]
[399741685,1766650241782,-150.99,0.00011649,2]
[399741686,1766650241792,-9999.99,0.00011649,2]
[399741687,1766650241802,-200.0,0.00011649,2]
[399741688,1766650241812,-207.4,0.00011649,2]
[399741689,1766650241822,-500.0,0.00011649,2]
[399741690,1766650241832,-500.0,0.00011649,2]
[399741691,1766650241842,-500.0,0.00011649,2]
[399741692,1766650241852,-335.26105309,0.00011649,2]
[399741693,1766650241863,-500.0,0.00011649,2]
[399741694,1766650241874,-500.0,0.00011649,2]
[399741695,1766650241884,-500.0,0.00011649,2]
[399741696,1766650241900,-500.0,0.00011649,2]
[399741697,1766650241910,-500.0,0.00011649,2]
[399741698,1766650241920,-500.0,0.00011649,2]
[399741699,1766650241931,-200.0,0.00011649,2]
[399741700,1766650241942,-500.0,0.00011649,2]
[399741701,1766650241952,-500.0,0.00011649,2]
[399741702,1766650241962,-151.0,0.00011649,2]
[399741703,1766650241972,-500.0,0.00011649,2]
[399741704,1766650241983,-151.0,0.00011649,2]
[399741705,1766650241993,-151.0,0.00011649,2]
[399741706,1766650242003,-151.0,0.00011649,2]
[399741707,1766650242014,-151.0,0.00011649,2]
[399741708,1766650242024,-151.0,0.00011649,2]
[399741709,1766650242034,-151.0,0.00011649,2]
[399741710,1766650242044,-151.0,0.00011649,2]
[399741711,1766650242054,-151.0,0.00011649,2]
[399741712,1766650242064,-151.0,0.00011649,2]
[399741713,1766650242074,-151.0,0.00011649,2]
[399741714,1766650242086,-500.0,0.00011649,2]
[399741715,1766650242097,-500.0,0.00011649,2]
[399741716,1766650242107,-500.0,0.00011649,2]
[399741717,1766650242117,-500.0,0.00011649,2]
[399741718,1766650242128,-500.0,0.00011649,2]
[399741719,1766650242138,-500.0,0.00011649,2]
[399741720,1766650242148,-500.0,0.00011649,2]
[399741721,1766650242159,-500.0,0.00011649,2]
[399741722,1766650242170,-500.0,0.00011649,2]
[399741723,1766650242181,-571.83836184,0.00011649,2]
[399741724,1766650242191,-8448.99197045,0.00011679,2]
[399741725,1766650242202,-449.56,0.00011922,2]
[399741726,1766650242212,-1000.0,0.00012079,2]
[399741727,1766650242222,-162.74,0.00012144,2]
[399741728,1766650242233,-449.56,0.00012196,2]
[399741729,1766650242243,-201.0916735,0.00012197,2]
[399741730,1766650242253,-500.0,0.00012197,2]
[399741731,1766650242269,-449.56,0.0001247,2]
[399741732,1766650242280,-250.0,0.0001255,2]
[399741733,1766650242291,-300.0,0.0001255,2]
[399741734,1766650242301,-420.0,0.00012682,2]
[399741735,1766650242312,-420.0,0.00012682,2]
[399741736,1766650242322,-300.0,0.00012702,2]
[399741737,1766650242332,-250.0,0.00012702,2]
[399741738,1766650242343,-686.0,0.00012702,2]
[399741739,1766650242354,-255.0,0.00012715,2]
[399741740,1766650242365,-449.56,0.00012744,2]
[399741741,1766650242376,-166.66,0.00012916,2]
[399741742,1766650242386,-3282.27716265,0.00013048,2]
[399741743,1766650242397,-8448.99197037,0.00013137,2]
[399741744,1766650242407,-166.66,0.00013342,2]
[399741745,1766650242418,-152.0,0.00013515,2]
[399741746,1766650242428,-1256.0,0.00013515,2]
[399741747,1766650242442,-152.0,0.00013515,2]
[399741748,1766650242452,-152.0,0.00013515,2]
[399741749,1766650242463,-1256.0,0.00013515,2]
[399741750,1766650242475,-152.0,0.00013515,2]
[399741751,1766650242486,-1256.0,0.00013515,2]
[399741752,1766650242496,-152.0,0.00013515,2]
[399741753,1766650242507,-152.0,0.00013515,2]
[399741754,1766650242518,-1256.0,0.00013515,2]
[399741755,1766650242529,-152.0,0.00013515,2]
[399741756,1766650242539,-152.0,0.00013515,2]
[399741757,1766650242550,-1256.0,0.00013515,2]
[399741758,1766650242560,-152.0,0.00013515,2]
[399741759,1766650242570,-152.0,0.00013515,2]
[399741760,1766650242580,-1256.0,0.00013515,2]
[399741761,1766650242591,-152.0,0.00013515,2]
[399741762,1766650242601,-152.0,0.00013515,2]
[399741763,1766650242615,-152.0,0.00013515,2]
[399741764,1766650242626,-1256.0,0.00013515,2]
[399741765,1766650242636,-152.0,0.00013515,2]
[399741766,1766650242647,-152.0,0.00013515,2]
[399741767,1766650242658,-152.0,0.00013515,2]
[399741768,1766650242668,-1256.0,0.00013515,2]
[399741769,1766650242679,-152.0,0.00013515,2]
[399741770,1766650242689,-1256.0,0.00013515,2]
[399741771,1766650242699,-152.0,0.00013515,2]
[399741772,1766650242710,-152.0,0.00013515,2]
[399741773,1766650242720,-152.0,0.00013515,2]
[399741774,1766650242730,-1256.0,0.00013515,2]
[399741775,1766650242740,-152.0,0.00013515,2]
[399741776,1766650242751,-1256.0,0.00013515,2]
[399741777,1766650242761,-152.0,0.00013515,2]
[399741778,1766650242771,-152.0,0.00013515,2]
[399741779,1766650242781,-152.0,0.00013515,2]
[399741780,1766650242792,-1256.0,0.00013515,2]
[399741781,1766650242807,-152.0,0.00013515,2]
[399741782,1766650242817,-152.0,0.00013515,2]
[399741783,1766650242827,-1256.0,0.00013515,2]
[399741784,1766650242837,-152.0,0.00013515,2]
[399741785,1766650242848,-152.0,0.00013515,2]
[399741786,1766650242858,-1256.0,0.00013515,2]
[399741787,1766650242868,-152.0,0.00013515,2]